fUSD/lending_fUSD_20240519
["ID","MTS","AMOUNT","RATE_DAILY","PERIOD"]
[327500980,1716126636243,-500.0,0.00026364,2]
[327500981,1716126636252,-500.0,0.00026364,2]
[327500982,1716126636262,-500.0,0.00026364,2]
[327500983,1716126636275,-500.0,0.00026364,2]
[327500984,1716126636284,-500.0,0.00026364,2]
[327500985,1716126636293,-500.0,0.00026364,2]
[327500986,1716126636307,-500.0,0.00026364,2]
[327500987,1716126636317,-500.0,0.00026364,2]
[327500988,1716126636326,-500.0,0.00026364,2]
[327500989,1716126636336,-569.71981899,0.00026364,2]
[327500990,1716126636346,-500.0,0.00026364,2]
[327500991,1716126636355,-500.0,0.00026364,2]
[327500992,1716126636365,-500.0,0.00026364,2]
[327500993,1716126636375,-500.0,0.00026364,2]
[327500994,1716126636385,-155.53267852,0.00026365,2]
[327500995,1716126636395,-155.0,0.00026365,2]
[327500996,1716126636405,-291.98390773,0.00026365,2]
[327500997,1716126636415,-500.0,0.00026365,2]
[327500998,1716126636424,-500.0,0.00026365,2]
[327500999,1716126636433,-500.0,0.00026365,2]
[327501000,1716126636443,-500.0,0.00026365,2]
[327501001,1716126636452,-500.0,0.00026365,2]
[327501002,1716126636462,-500.0,0.00026365,2]
[327501003,1716126636472,-500.0,0.00026365,2]
[327501004,1716126636482,-500.0,0.00026365,2]
[327501005,1716126636491,-500.0,0.00026365,2]
[327501006,1716126636501,-500.0,0.00026365,2]
[327501007,1716126636511,-500.0,0.00026365,2]
[327501008,1716126636523,-342.96226244,0.00026365,2]
[327501009,1716126636538,-157.03773756,0.00026365,2]
[327501010,1716126636553,-347.6564752,0.00026365,2]
[327501011,1716126636566,-152.3435248,0.00026365,2]
[327501012,1716126636576,-500.0,0.00026365,2]
[327501013,1716126636587,-325.092023,0.00026366,2]
[327501014,1716126636596,-155.0,0.00026366,2]
[327501015,1716126636606,-952.15046259,0.00026366,2]
[327501028,1716126637644,-500.0,0.00026363,2]
[327501032,1716126637653,-0.6964493,0.00026366,2]
[327501048,1716126637904,-358.9537836,0.00026366,2]
[327501049,1716126637917,-2081.90681666,0.00026366,2]
[327501050,1716126637927,-500.0,0.00026366,2]
[327501051,1716126637938,-500.0,0.00026366,2]
[327501052,1716126637948,-500.0,0.00026366,2]
[327501053,1716126637958,-500.0,0.00026366,2]
[327501054,1716126637968,-500.0,0.00026366,2]
[327501055,1716126637977,-202.14,0.00026366,2]
[327501056,1716126637987,-500.0,0.00026366,2]
[327501057,1716126637997,-500.0,0.00026366,2]
[327501058,1716126638006,-500.0,0.00026366,2]
[327501059,1716126638019,-500.0,0.00026366,2]
[327501060,1716126638029,-500.0,0.00026366,2]
[327501062,1716126638039,-150.0,0.00026366,2]
[327501064,1716126638048,-500.0,0.00026366,2]
[327501066,1716126638057,-500.0,0.00026366,2]
[327501068,1716126638067,-500.0,0.00026366,2]
[327501070,1716126638076,-500.0,0.00026366,2]
[327501072,1716126638086,-500.0,0.00026366,2]
[327501074,1716126638095,-500.0,0.00026366,2]
[327501076,1716126638105,-500.0,0.00026366,2]
[327501078,1716126638115,-595.66,0.00026366,2]
[327501080,1716126638125,-500.0,0.00026366,2]
[327501081,1716126638134,-500.0,0.00026366,2]
[327501084,1716126638144,-509.31484167,0.00026366,2]
[327501086,1716126638154,-500.0,0.00026366,2]
[327501088,1716126638165,-500.0,0.00026366,2]
[327501090,1716126638174,-500.0,0.00026366,2]
[327501092,1716126638184,-500.0,0.00026366,2]
[327501094,1716126638194,-528.15777202,0.00026366,2]
[327501096,1716126638204,-443.97898803,0.00026366,2]
[327501098,1716126638213,-500.0,0.00026366,2]
[327501100,1716126638223,-543.84040938,0.00026366,2]
[327501102,1716126638234,-500.0,0.00026366,2]
[327501104,1716126638244,-560.79,0.00026366,2]
[327501106,1716126638254,-500.0,0.00026366,2]
[327501108,1716126638264,-500.0,0.00026366,2]
[327501111,1716126638275,-500.0,0.00026366,2]
[327501113,1716126638284,-500.0,0.00026366,2]
[327501115,1716126638294,-507.78207192,0.00026366,2]
[327501117,1716126638304,-500.0,0.00026366,2]
[327501119,1716126638314,-500.0,0.00026366,2]
[327501122,1716126638323,-500.0,0.00026366,2]
[327501124,1716126638332,-646.47,0.00026366,2]
[327501126,1716126638342,-500.0,0.00026366,2]
[327501128,1716126638351,-503.7066702,0.00026366,2]
[327501131,1716126638361,-500.0,0.00026366,2]
[327501133,1716126638370,-501.5707417,0.00026366,2]
[327501135,1716126638380,-520.25916032,0.00026366,2]
[327501137,1716126638390,-288.80098698,0.00026367,2]
[327501139,1716126638399,-208.27152668,0.00026367,2]
[327501141,1716126638409,-155.0,0.00026367,2]
[327501143,1716126638418,-711.19450635,0.00026367,2]
[327501145,1716126638428,-643.21413352,0.00026367,2]
[327501146,1716126638437,-225.97112315,0.00026367,2]
[327501147,1716126638447,-729.54929253,0.00026367,2]
[327501148,1716126638456,-323.68137164,0.00026367,2]
[327501149,1716126638465,-258.35664336,0.00026367,2]
[327501150,1716126638474,-335.47287697,0.00026367,7]
[327501151,1716126638484,-1210.37915373,0.00026367,2]
[327501152,1716126638494,-1249.35755271,0.00026367,2]
[327501153,1716126638503,-440.35264975,0.00026367,2]
[327501154,1716126638513,-282.55141763,0.00026367,2]
[327501155,1716126638524,-3279.84855016,0.00026367,2]
[327501157,1716126638533,-305.0,0.00026367,2]
[327501159,1716126638544,-157.04666537,0.00026367,2]
[327501161,1716126638558,-298.39421916,0.00026367,2]
[327501163,1716126638568,-155.19782317,0.00026367,2]
[327501166,1716126638577,-23106.27137631,0.00026367,2]
[327501168,1716126638588,-446.76445937,0.00026367,10]
[327501170,1716126638598,-500.0,0.00026368,2]
[327501172,1716126638608,-500.0,0.00026368,2]
[327501174,1716126638618,-1000.0,0.000265,2]
[327501175,1716126638630,-7500.0,0.00026538,2]
[327501176,1716126638640,-494.77,0.00026596,2]
[327501177,1716126638649,-500.0,0.00026637,2]
[327501178,1716126638658,-500.0,0.00026637,2]
[327501179,1716126638668,-574.4159485,0.00026637,2]
[327501180,1716126638677,-500.0,0.00026637,2]
[327501181,1716126638687,-500.0,0.00026637,2]
[327501182,1716126638696,-500.0,0.00026637,2]
[327501183,1716126638706,-500.0,0.00026637,2]
[327501184,1716126638715,-500.0,0.00026637,2]
[327501185,1716126638724,-500.0,0.00026637,2]
[327501186,1716126638734,-500.0,0.00026637,2]
[327501187,1716126638743,-500.0,0.00026637,2]
[327501188,1716126638752,-500.0,0.00026637,2]
[327501189,1716126638763,-500.0,0.00026637,2]
[327501190,1716126638773,-500.0,0.00026637,2]
[327501191,1716126638783,-500.0,0.00026637,2]
[327501192,1716126638792,-500.0,0.00026637,2]
[327501193,1716126638802,-500.0,0.00026637,2]
[327501194,1716126638811,-500.0,0.00026637,2]
[327501195,1716126638821,-500.0,0.00026637,2]
[327501196,1716126638831,-500.0,0.00026637,2]
[327501197,1716126638841,-500.0,0.00026637,2]
[327501198,1716126638851,-769.96,0.00026637,2]
[327501199,1716126638861,-500.0,0.00026637,2]
[327501200,1716126638870,-500.0,0.00026637,2]
[327501201,1716126638880,-500.0,0.00026637,2]
[327501202,1716126639016,-223.61,0.00026637,2]
[327501203,1716126639030,-500.0,0.00026637,2]
[327501204,1716126639040,-500.0,0.00026637,2]
[327501205,1716126639051,-268.12876898,0.00026637,2]
[327501206,1716126639061,-1491.39,0.00026637,2]
[327501207,1716126639072,-500.0,0.00026637,2]
[327501208,1716126639081,-500.0,0.00026637,2]
[327501209,1716126639092,-500.0,0.00026637,2]
[327501210,1716126639102,-500.0,0.00026637,2]
[327501211,1716126639112,-368.12,0.00026638,2]
[327501212,1716126639122,-500.0,0.00026638,2]
[327501213,1716126639132,-548.51,0.00026638,2]
[327501214,1716126639142,-500.0,0.00026638,2]
[327501215,1716126639151,-500.0,0.00026638,2]
[327501216,1716126639161,-464.21591574,0.00026638,2]
[327501217,1716126639171,-500.0,0.00026638,2]
[327501218,1716126639182,-377.6,0.00026638,2]
[327501219,1716126639192,-500.0,0.00026638,2]
[327501220,1716126639202,-500.0,0.00026638,2]
[327501221,1716126639212,-429.84435486,0.00026638,2]
[327501222,1716126639222,-500.0,0.00026638,2]
[327501223,1716126639232,-500.0,0.00026638,2]
[327501224,1716126639242,-183.99,0.00026638,2]
[327501225,1716126639252,-506.15,0.00026638,2]
[327501226,1716126639262,-29.86162963,0.00026638,2]
[327501227,1716126639361,-493.36837037,0.00026638,2]
[327501228,1716126639371,-24.53749033,0.00026638,2]
[327501232,1716126639936,-501.35270242,0.00026366,2]
[327501233,1716126639946,-489.68,0.00026638,2]
[327501234,1716126639956,-35.00810591,0.00026638,2]
[327501235,1716126640073,-464.99189409,0.00026638,2]
[327501236,1716126640083,-194.1,0.00026638,2]
[327501237,1716126640093,-437.25826116,0.00026638,2]
[327501238,1716126640105,-62.74173884,0.00026638,2]
[327501239,1716126640114,-400.31716486,0.00026638,2]
[327501240,1716126640127,-735.62283514,0.00026638,2]
[327501241,1716126640137,-244.32628564,0.00026638,2]
[327501242,1716126640146,-500.0,0.00026638,2]
[327501243,1716126640156,-500.0,0.00026638,2]
[327501244,1716126640165,-1613.89,0.00026638,2]
[327501245,1716126640175,-87.70287922,0.00026638,2]
[327501246,1716126640186,-412.29712078,0.00026638,2]
[327501247,1716126640196,-500.0,0.00026638,2]
[327501248,1716126640205,-500.0,0.00026638,2]
[327501250,1716126640215,-1.80382831,0.00026638,2]
[327501251,1716126640227,-498.19617169,0.00026638,2]
[327501252,1716126640236,-500.0,0.00026638,2]
[327501253,1716126640246,-500.0,0.00026638,2]
[327501254,1716126640256,-500.0,0.00026638,2]
[327501255,1716126640265,-618.74,0.00026638,2]
[327501256,1716126640276,-500.0,0.00026638,2]
[327501257,1716126640285,-249.02,0.00026638,2]
[327501258,1716126640296,-84.17835074,0.00026638,2]
[327501303,1716126642761,-500.0,0.00026363,2]
[327501305,1716126642772,-500.0,0.00026363,2]
[327501307,1716126642782,-500.0,0.00026364,2]
[327501308,1716126642793,-500.0,0.00026364,2]
[327501310,1716126642803,-518.89831717,0.00026366,2]
[327501311,1716126642813,-500.0,0.00026637,2]
[327501312,1716126642823,-500.0,0.00026637,2]
[327501313,1716126642832,-123.90085674,0.00026638,2]
[327501314,1716126642844,-291.92079252,0.00026638,2]
[327501315,1716126642853,-500.0,0.00026638,2]
[327501316,1716126642863,-500.0,0.00026638,2]
[327501317,1716126642872,-500.0,0.00026638,2]
[327501318,1716126642882,-500.0,0.00026638,2]
[327501319,1716126642891,-500.0,0.00026638,2]
[327501320,1716126642903,-221.69,0.00026638,2]
[327501321,1716126642912,-500.0,0.00026638,2]
[327501322,1716126642924,-500.0,0.00026638,2]
[327501323,1716126642933,-186.61646181,0.00026638,2]
[327501324,1716126642943,-500.0,0.00026638,2]
[327501325,1716126642952,-500.0,0.00026638,2]
[327501326,1716126642962,-500.0,0.00026638,2]
[327501327,1716126642972,-500.0,0.00026638,2]
[327501328,1716126642982,-500.0,0.00026638,2]
[327501329,1716126642991,-500.0,0.00026638,2]
[327501330,1716126643001,-500.0,0.00026638,2]
[327501331,1716126643011,-500.0,0.00026638,2]
[327501332,1716126643021,-500.0,0.00026638,2]
[327501333,1716126643032,-500.0,0.00026638,2]
[327501334,1716126643041,-500.0,0.00026638,2]
[327501335,1716126643050,-500.0,0.00026638,2]
[327501336,1716126643060,-500.0,0.00026638,2]
[327501337,1716126643069,-500.0,0.00026638,2]
[327501338,1716126643079,-500.0,0.00026638,2]
[327501339,1716126643089,-500.0,0.00026638,2]
[327501340,1716126643099,-500.0,0.00026638,2]
[327501341,1716126643108,-500.0,0.00026638,2]
[327501342,1716126643117,-500.0,0.00026638,2]
[327501343,1716126643127,-500.0,0.00026638,2]
[327501344,1716126643137,-500.0,0.00026638,2]
[327501345,1716126643147,-500.0,0.00026639,2]
[327501346,1716126643158,-500.0,0.00026639,2]
[327501347,1716126643171,-500.0,0.00026639,2]
[327501348,1716126643181,-500.0,0.00026639,2]
[327501349,1716126643191,-500.0,0.00026639,2]
[327501350,1716126643200,-500.0,0.00026639,2]
[327501351,1716126643210,-500.0,0.00026639,2]
[327501352,1716126643220,-500.0,0.00026639,2]
[327501353,1716126643229,-500.0,0.00026639,2]
[327501354,1716126643238,-500.0,0.00026639,2]
[327501355,1716126643248,-500.0,0.00026639,2]
[327501356,1716126643257,-308.28274567,0.0002664,2]
[327501357,1716126643271,-191.71725433,0.0002664,2]
[327501359,1716126643281,-103.10554645,0.0002664,2]
[327501361,1716126643297,-396.89445355,0.0002664,2]
[327501362,1716126643309,-330.9,0.0002664,2]
[327501363,1716126643318,-193.2,0.0002664,2]
[327501364,1716126643329,-516.52,0.0002664,2]
[327501365,1716126643339,-500.0,0.0002664,2]
[327501366,1716126643348,-500.0,0.0002664,2]
[327501367,1716126643358,-278.18,0.0002664,2]
[327501368,1716126643368,-621.87,0.0002664,2]
[327501369,1716126643377,-213.84,0.0002664,2]
[327501370,1716126643387,-500.0,0.0002664,2]
[327501371,1716126643396,-500.0,0.0002664,2]
[327501372,1716126643406,-500.0,0.0002664,2]
[327501373,1716126643415,-500.0,0.0002664,2]
[327501374,1716126643424,-500.0,0.0002664,2]
[327501375,1716126643434,-500.0,0.0002664,2]
[327501376,1716126643444,-343.07,0.0002664,2]
[327501377,1716126643454,-500.0,0.0002664,2]
[327501378,1716126643463,-330.24127505,0.0002664,2]
[327501380,1716126643472,-442.04,0.0002664,2]
[327501382,1716126643481,-444.91889752,0.0002664,2]
[327501384,1716126643490,-500.0,0.0002664,2]
[327501385,1716126643499,-500.0,0.0002664,2]
[327501387,1716126643508,-491.01346588,0.0002664,2]
[327501390,1716126643520,-8.98653412,0.0002664,2]
[327501392,1716126643530,-500.0,0.0002664,2]
[327501394,1716126643540,-646.47,0.0002664,2]
[327501396,1716126643553,-442.57701275,0.00026642,2]
[327501398,1716126643565,-57.42298725,0.00026642,2]
[327501400,1716126643575,-500.0,0.00026642,2]
[327501402,1716126643584,-809.42810491,0.00026685,2]
[327501405,1716126643597,-179.29189509,0.00026685,2]
[327501407,1716126643606,-1216.74807831,0.00026693,3]
[327501409,1716126643617,-851.90336111,0.00026693,3]
[327501411,1716126643627,-513.51812588,0.000268,2]
[327501413,1716126643639,-2971.4261541,0.000268,2]
[327501416,1716126643654,-723.49542968,0.000268,2]
[327501418,1716126643668,-41340.81805436,0.000268,2]
[327501420,1716126643677,-4958.01,0.00026864,2]
[327501422,1716126643686,-205.41424698,0.00026904,2]
[327501424,1716126643696,-500.0,0.00026911,2]
[327501426,1716126643705,-500.0,0.00026911,2]
[327501428,1716126643714,-591.05990296,0.00026911,2]
[327501430,1716126643723,-500.0,0.00026911,2]
[327501432,1716126643733,-500.0,0.00026911,2]
[327501434,1716126643742,-500.0,0.00026911,2]
[327501436,1716126643752,-500.0,0.00026911,2]
[327501438,1716126643761,-500.0,0.00026911,2]
[327501440,1716126643772,-500.0,0.00026911,2]
[327501442,1716126643781,-500.0,0.00026911,2]
[327501444,1716126643791,-500.0,0.00026911,2]
[327501446,1716126643801,-500.0,0.00026911,2]
[327501448,1716126643810,-500.0,0.00026911,2]
[327501450,1716126643820,-500.0,0.00026911,2]
[327501452,1716126643829,-500.0,0.00026911,2]
[327501454,1716126643838,-500.0,0.00026911,2]
[327501456,1716126643848,-500.0,0.00026911,2]
[327501458,1716126643858,-500.0,0.00026911,2]
[327501460,1716126643867,-500.0,0.00026911,2]
[327501461,1716126643876,-769.96,0.00026911,2]
[327501462,1716126643885,-500.0,0.00026911,2]
[327501463,1716126643894,-500.0,0.00026911,2]
[327501464,1716126643904,-500.0,0.00026911,2]
[327501465,1716126643914,-1491.39,0.00026911,2]
[327501466,1716126643924,-500.0,0.00026911,2]
[327501467,1716126643933,-500.0,0.00026911,2]
[327501468,1716126643943,-500.0,0.00026911,2]
[327501469,1716126643953,-500.0,0.00026911,2]
[327501470,1716126643963,-475.46250967,0.00026911,2]
[327501471,1716126643972,-500.0,0.00026912,2]
[327501472,1716126643983,-500.0,0.00026912,2]
[327501473,1716126643992,-500.0,0.00026912,2]
[327501474,1716126644002,-345.71,0.00026912,2]
[327501475,1716126644012,-563.11,0.00026912,2]
[327501476,1716126644022,-500.0,0.00026912,2]
[327501477,1716126644033,-186.24,0.00026912,2]
[327501478,1716126644042,-500.0,0.00026912,2]
[327501479,1716126644052,-500.0,0.00026912,2]
[327501480,1716126644062,-1135.94,0.00026912,2]
[327501481,1716126644071,-500.0,0.00026912,2]
[327501482,1716126644081,-500.0,0.00026912,2]
[327501483,1716126644090,-1613.89,0.00026912,2]
[327501484,1716126644100,-500.0,0.00026912,2]
[327501485,1716126644109,-500.0,0.00026912,2]
[327501486,1716126644118,-500.0,0.00026912,2]
[327501487,1716126644128,-500.0,0.00026912,2]
[327501488,1716126644138,-500.0,0.00026912,2]
[327501489,1716126644147,-500.0,0.00026912,2]
[327501490,1716126644157,-618.74,0.00026912,2]
[327501491,1716126644167,-500.0,0.00026912,2]
[327501492,1716126644176,-500.0,0.00026912,2]
[327501493,1716126644187,-500.0,0.00026912,2]
[327501494,1716126644197,-500.0,0.00026912,2]
[327501495,1716126644206,-500.0,0.00026912,2]
[327501496,1716126644216,-500.0,0.00026912,2]
[327501497,1716126644225,-500.0,0.00026912,2]
[327501498,1716126644234,-500.0,0.00026912,2]
[327501499,1716126644243,-500.0,0.00026912,2]
[327501500,1716126644253,-500.0,0.00026912,2]
[327501501,1716126644288,-500.0,0.00026912,2]
[327501502,1716126644297,-500.0,0.00026912,2]
[327501503,1716126644307,-500.0,0.00026912,2]
[327501504,1716126644317,-356.8840241,0.00026912,2]
[327501505,1716126644326,-500.0,0.00026912,2]
[327501506,1716126644336,-500.0,0.00026912,2]
[327501507,1716126644346,-500.0,0.00026912,2]
[327501508,1716126644356,-500.0,0.00026912,2]
[327501509,1716126644366,-500.0,0.00026912,2]
[327501510,1716126644375,-500.0,0.00026912,2]
[327501511,1716126644386,-274.31461572,0.00026912,2]
[327501512,1716126644396,-500.0,0.00026912,2]
[327501513,1716126644406,-511.91,0.00026912,2]
[327501514,1716126644415,-500.0,0.00026912,2]
[327501515,1716126644425,-500.0,0.00026912,2]
[327501516,1716126644434,-500.0,0.00026913,2]
[327501517,1716126644443,-500.0,0.00026913,2]
[327501518,1716126644453,-500.0,0.00026913,2]
[327501519,1716126644462,-500.0,0.00026913,2]
[327501520,1716126644471,-500.0,0.00026913,2]
[327501521,1716126644481,-500.0,0.00026913,2]
[327501522,1716126644489,-499.99999999,0.00026913,2]
[327501523,1716126644499,-500.0,0.00026913,2]
[327501524,1716126644509,-500.0,0.00026913,2]
[327501525,1716126644519,-500.0,0.00026913,2]
[327501526,1716126644528,-500.0,0.00026913,2]
[327501527,1716126644538,-148529.76809185,0.00026914,2]
[327501528,1716126644551,-299.89711403,0.00026914,2]
[327501529,1716126644561,-204.34387367,0.00026914,2]
[327501530,1716126644571,-308.12039765,0.00026914,2]
[327501531,1716126644580,-210.39960736,0.00026914,2]
[327501532,1716126644591,-709.02988597,0.00026914,2]
[327501533,1716126644601,-206.3699626,0.00026914,2]
[327501534,1716126644610,-969.72210365,0.00026914,2]
[327501535,1716126644619,-206.45698171,0.00026914,2]
[327501536,1716126644630,-221.2383557,0.00026914,2]
[327501537,1716126644639,-179.28826561,0.00026914,2]
[327501538,1716126644648,-255.20118883,0.00026914,2]
[327501539,1716126644657,-165.95926671,0.00026914,2]
[327501540,1716126644667,-155.26323273,0.00026914,2]
[327501541,1716126644676,-2358.78776413,0.00026914,2]
[327501542,1716126644686,-500.0,0.00026914,2]
[327501543,1716126644695,-500.0,0.00026914,2]
[327501544,1716126644705,-500.0,0.00026914,2]
[327501545,1716126644714,-189.68426455,0.00026914,2]
[327501546,1716126644724,-545.87478642,0.00026914,2]
[327501547,1716126644733,-552.76,0.00026914,2]
[327501548,1716126644743,-500.0,0.00026914,2]
[327501549,1716126644753,-324.37,0.00026914,2]
[327501550,1716126644763,-373.15387903,0.00026914,2]
[327501551,1716126644773,-500.0,0.00026914,2]
[327501552,1716126644783,-500.0,0.00026914,2]
[327501553,1716126644793,-649.52094186,0.00026914,2]
[327501554,1716126644801,-500.0,0.00026914,2]
[327501555,1716126644812,-646.47,0.00026914,2]
[327501556,1716126644821,-194.90807186,0.00026915,2]
[327501557,1716126644831,-308.82434026,0.00026915,2]
[327501558,1716126644841,-276.38529063,0.00026915,2]
[327501559,1716126644851,-158.39167548,0.00026915,2]
[327501560,1716126644860,-500.0,0.00026916,2]
[327501561,1716126644870,-155.0,0.00027,2]
[327501562,1716126644880,-300.0,0.00027,2]
[327501563,1716126644889,-200.0,0.00027037,2]
[327501564,1716126644899,-241.44,0.00027185,2]
[327501565,1716126644909,-420.65,0.00027185,2]
[327501566,1716126644918,-500.0,0.00027185,2]
[327501567,1716126644927,-500.0,0.00027185,2]
[327501568,1716126644937,-500.0,0.00027185,2]
[327501569,1716126644947,-454.7,0.00027185,2]
[327501570,1716126644956,-500.0,0.00027185,2]
[327501571,1716126644966,-500.0,0.00027185,2]
[327501572,1716126644976,-500.0,0.00027185,2]
[327501573,1716126644985,-500.0,0.00027185,2]
[327501574,1716126644995,-500.0,0.00027185,2]
[327501575,1716126645004,-500.0,0.00027185,2]
[327501576,1716126645014,-500.0,0.00027185,2]
[327501577,1716126645024,-769.96,0.00027185,2]
[327501578,1716126645033,-500.0,0.00027185,2]
[327501579,1716126645044,-500.0,0.00027185,2]
[327501580,1716126645054,-500.0,0.00027185,2]
[327501581,1716126645063,-1491.39,0.00027185,2]
[327501582,1716126645073,-500.0,0.00027185,2]
[327501583,1716126645082,-500.0,0.00027185,2]
[327501584,1716126645092,-183.20004534,0.00027185,2]
[327501585,1716126645101,-500.0,0.00027186,2]
[327501586,1716126645111,-500.0,0.00027186,2]
[327501587,1716126645120,-500.0,0.00027186,2]
[327501588,1716126645130,-500.0,0.00027186,2]
[327501589,1716126645139,-1135.94,0.00027186,2]
[327501590,1716126645149,-500.0,0.00027186,2]
[327501591,1716126645159,-500.0,0.00027186,2]
[327501592,1716126645168,-500.0,0.00027186,2]
[327501593,1716126645177,-1613.89,0.00027186,2]
[327501594,1716126645187,-500.0,0.00027186,2]
[327501595,1716126645196,-500.0,0.00027186,2]
[327501596,1716126645206,-500.0,0.00027186,2]
[327501597,1716126645215,-500.0,0.00027186,2]
[327501598,1716126645225,-618.74,0.00027186,2]
[327501599,1716126645235,-500.0,0.00027186,2]
[327501600,1716126645245,-500.0,0.00027186,2]
[327501601,1716126645255,-500.0,0.00027186,2]
[327501602,1716126645264,-500.0,0.00027186,2]
[327501603,1716126645274,-500.0,0.00027186,2]
[327501604,1716126645284,-500.0,0.00027186,2]
[327501605,1716126645293,-500.0,0.00027186,2]
[327501606,1716126645303,-500.0,0.00027186,2]
[327501607,1716126645312,-454.38,0.00027186,2]
[327501608,1716126645322,-500.0,0.00027186,2]
[327501609,1716126645332,-199.25530449,0.00027186,2]
[327501610,1716126645341,-500.0,0.00027186,2]
[327501611,1716126645351,-500.0,0.00027186,2]
[327501612,1716126645361,-500.0,0.00027186,2]
[327501613,1716126645370,-500.0,0.00027186,2]
[327501614,1716126645379,-500.0,0.00027186,2]
[327501615,1716126645389,-497.07,0.00027186,2]
[327501616,1716126645398,-500.0,0.00027187,2]
[327501617,1716126645408,-500.0,0.00027187,2]
[327501619,1716126645418,-646.47,0.00027188,2]
[327501621,1716126645428,-500.0,0.0002719,2]
[327501623,1716126645437,-300.0,0.00027397,2]
[327501624,1716126645446,-179.91,0.00027397,10]
[327501625,1716126645456,-899.59,0.00027397,10]
[327501626,1716126645467,-246.63,0.000274,2]
[327501627,1716126645477,-538.12,0.00027459,2]
[327501628,1716126645488,-500.0,0.00027459,2]
[327501629,1716126645499,-206.77,0.00027459,2]
[327501630,1716126645509,-500.0,0.00027459,2]
[327501631,1716126645519,-500.0,0.00027459,2]
[327501632,1716126645528,-500.0,0.00027459,2]
[327501633,1716126645538,-500.0,0.00027459,2]
[327501634,1716126645552,-500.0,0.00027459,2]
[327501637,1716126645562,-500.0,0.00027459,2]
[327501638,1716126645572,-769.96,0.00027459,2]
[327501640,1716126645582,-500.0,0.00027459,2]
[327501642,1716126645591,-500.0,0.00027459,2]
[327501643,1716126645600,-530.95,0.00027459,2]
[327501644,1716126645611,-1491.39,0.00027459,2]
[327501645,1716126645620,-500.0,0.00027459,2]
[327501646,1716126645632,-500.0,0.00027459,2]
[327501647,1716126645641,-504.3213866,0.0002746,2]
[327501648,1716126645651,-500.0,0.0002746,2]
[327501649,1716126645660,-1135.94,0.0002746,2]
[327501650,1716126645669,-1613.89,0.0002746,2]
[327501651,1716126645679,-500.0,0.0002746,2]
[327501652,1716126645689,-618.74,0.0002746,2]
[327501653,1716126645698,-500.0,0.0002746,2]
[327501654,1716126645709,-500.0,0.0002746,2]
[327501655,1716126645718,-555.8,0.0002746,2]
[327501656,1716126645729,-500.0,0.0002746,2]
[327501657,1716126645738,-240.16,0.0002746,2]
[327501658,1716126645747,-500.0,0.00027461,2]
[327501659,1716126645756,-311.5,0.00027461,2]
[327501660,1716126645766,-646.47,0.00027462,2]
[327501661,1716126645775,-500.0,0.00027464,2]
[327501662,1716126645785,-300.0,0.00027534,2]
[327501663,1716126645794,-328.44,0.00027663,2]
[327501664,1716126645803,-1064.05210318,0.00027669,2]
[327501665,1716126645812,-1064.73669596,0.00027669,2]